bitfinex/quotes_SOLUSD_20250403
["timestamp","ask_amount","ask_price","bid_price","bid_amount"]
[1743688813311,0.5,114.55,114.53,30.0]
[1743688813500,0.5,114.57,114.54,48.64327601]
[1743688813706,0.5,114.54,114.53,30.0]
[1743688813912,26.5,114.54,114.53,30.0]
[1743688814116,75.14327601,114.54,114.53,30.0]
[1743688814303,75.14327601,114.54,114.46,0.03]
[1743688814304,0.5,114.49,114.46,0.03]
[1743688814505,0.5,114.47,114.46,0.03]
[1743688814728,0.5,114.5,114.46,48.67327601]
[1743688815035,0.5,114.51,114.49,48.64327601]
[1743688815243,0.5,114.51,114.48,18.64964886]
[1743688815420,0.5,114.55,114.5,48.64327601]
[1743688815735,0.5,114.55,114.49,30.0]
[1743688815901,0.5,114.51,114.5,48.64327601]
[1743688816225,0.5,114.51,114.49,78.64327601]
[1743688816402,0.5,114.51,114.5,48.64327601]
[1743688816726,0.5,114.51,114.5,30.0]
[1743688817099,0.5,114.55,114.5,78.64327601]
[1743688817307,0.5,114.53,114.52,48.64327601]
[1743688817813,0.5,114.52,114.5,30.0]
[1743688818007,48.64327601,114.56,114.5,30.0]
[1743688818008,0.5,114.51,114.5,30.0]
[1743688818429,49.56976072,114.51,114.5,30.0]
[1743688818606,76.95220958,114.51,114.5,30.0]
[1743688818917,26.0,114.48,114.46,0.03]
[1743688819123,45.57613357,114.48,114.47,30.0]
[1743688819324,94.21940958,114.48,114.47,30.0]
[1743688819644,19.57613357,114.47,114.46,0.03]
[1743688820009,68.21940958,114.47,114.46,0.03]
[1743688820534,26.5,114.44,114.43,0.063]
[1743688820742,75.56976072,114.44,114.43,0.063]
[1743688820902,26.5,114.44,114.43,0.063]
[1743688821102,4.36923649,114.47,114.44,18.64964886]
[1743688821325,4.86923649,114.47,114.43,30.063]
[1743688821547,0.5,114.46,114.45,48.64327601]
[1743688821708,4.36923649,114.47,114.45,48.64327601]
[1743688821908,4.36923649,114.47,114.46,67.57724801]
[1743688822107,0.5,114.46,114.43,30.063]
[1743688822317,4.71096005,114.47,114.46,0.42648471]
[1743688822518,0.5,114.55,114.46,67.71940958]
[1743688822722,0.5,114.52,114.51,48.64327601]
[1743688822935,0.5,114.61,114.52,18.64964886]
[1743688823111,0.5,114.58,114.52,67.29292487]
[1743688823306,105.97937983,114.64,114.57,48.64327601]
[1743688823535,0.5,114.58,114.53,18.64964886]
[1743688823742,0.5,114.56,114.53,18.64964886]
[1743688823966,0.5,114.64,114.58,26.0]
[1743688824257,0.5,114.61,114.56,18.64964886]
[1743688824556,0.5,114.61,114.6,48.64327601]
[1743688824749,0.5,114.64,114.61,8.7252]
[1743688824951,0.5,114.62,114.56,19.07613357]
[1743688825123,0.5,114.62,114.6,48.64327601]
[1743688825322,0.5,114.63,114.61,48.64327601]
[1743688825521,0.5,114.64,114.62,48.64327601]
[1743688825835,0.063,114.65,114.63,48.64327601]
[1743688826023,0.5,114.59,114.46,8.7366]
[1743688826345,0.063,114.65,114.59,18.79181043]
[1743688826565,0.563,114.65,114.62,48.64327601]
[1743688826859,0.063,114.65,114.64,48.64327601]
[1743688827067,0.563,114.65,114.6,19.07613357]
[1743688827271,0.063,114.65,114.64,48.64327601]
[1743688827552,0.563,114.65,114.62,18.64964886]
[1743688827755,0.063,114.65,114.64,67.29292487]
[1743688827954,0.563,114.65,114.64,48.64327601]
[1743688828156,0.563,114.65,114.61,0.14216157]
[1743688828157,0.5,114.64,114.59,18.64964886]
[1743688828328,0.5,114.61,114.58,18.64964886]
[1743688828657,0.063,114.65,114.51,0.14216157]
[1743688828658,0.5,114.55,114.51,0.14216157]
[1743688828859,48.64327601,114.59,114.54,48.64327601]
[1743688828860,0.5,114.59,114.54,48.64327601]
[1743688829045,0.5,114.57,114.54,48.64327601]
[1743688829236,0.5,114.57,114.55,48.64327601]
[1743688829441,0.20516157,114.65,114.51,0.14216157]
[1743688829442,0.5,114.55,114.51,0.14216157]
[1743688829643,0.5,114.55,114.53,48.64327601]
[1743688829863,0.5,114.55,114.5,335.4735]
[1743688830172,0.5,114.6,114.54,48.64327601]
[1743688830378,0.5,114.59,114.58,48.64327601]
[1743688830536,0.5,114.58,114.57,48.64327601]
[1743688830733,0.5,114.58,114.56,57.37207601]
[1743688831040,0.20516157,114.65,114.52,70.47237601]
[1743688831041,0.5,114.6,114.52,0.42648471]
[1743688831270,0.5,114.56,114.51,18.64964886]
[1743688831581,0.5,114.55,114.51,18.64964886]
[1743688831768,0.5,114.55,114.53,48.64327601]
[1743688832071,0.5,114.54,114.5,335.4734]
[1743688832252,0.5,114.54,114.51,67.29292487]
[1743688832452,0.5,114.53,114.5,326.74]
[1743688832869,0.5,114.53,114.5,335.4734]
[1743688833165,0.5,114.58,114.53,0.14216157]
[1743688833457,20.063,114.69,114.56,0.28432314]
[1743688833458,0.5,114.6,114.56,0.28432314]
[1743688833637,0.5,114.61,114.59,48.64327601]
[1743688833842,0.5,114.57,114.51,0.14216157]
[1743688834059,0.5,114.61,114.56,48.64327601]
[1743688834242,0.5,114.59,114.57,48.64327601]
[1743688834444,0.5,114.62,114.57,18.64964886]
[1743688834646,0.5,114.63,114.58,48.64327601]
[1743688834849,0.5,114.61,114.59,48.64327601]
[1743688835047,0.5,114.61,114.57,8.87036157]
[1743688835048,0.5,114.61,114.58,18.64964886]
[1743688835458,0.5,114.61,114.58,67.29292487]
[1743688835768,48.70627601,114.65,114.5,326.74]
[1743688835769,0.5,114.6,114.5,326.74]
[1743688836057,0.5,114.58,114.56,48.64327601]
[1743688836249,0.5,114.58,114.55,18.64964886]
[1743688836451,0.5,114.58,114.56,48.64327601]
[1743688836650,0.5,114.58,114.56,26.0]
[1743688836866,0.5,114.58,114.55,8.7293]
[1743688837064,0.5,114.58,114.55,18.64964886]
[1743688837262,0.5,114.58,114.55,48.64327601]
[1743688837463,0.5,114.58,114.54,48.64327601]
[1743688837663,0.5,114.6,114.56,48.64327601]
[1743688837868,0.563,114.64,114.59,67.29292487]
[1743688838048,0.5,114.61,114.6,48.64327601]
[1743688838246,0.5,114.61,114.59,18.64964886]
[1743688838559,0.063,114.64,114.6,48.64327601]
[1743688838762,0.5,114.61,114.59,57.36977601]
[1743688838966,0.063,114.64,114.6,48.64327601]
[1743688839167,0.063,114.64,114.61,67.29292487]
[1743688839343,0.063,114.64,114.59,57.36977601]
[1743688839547,0.5,114.62,114.61,48.64327601]
[1743688839741,0.063,114.64,114.61,48.64327601]
[1743688839956,0.063,114.64,114.62,48.64327601]
[1743688840160,0.5,114.63,114.6,18.64964886]
[1743688840349,0.563,114.64,114.6,18.64964886]
[1743688840546,0.063,114.64,114.63,93.29292487]
[1743688840744,0.063,114.64,114.63,26.0]
[1743688841044,0.063,114.69,114.67,26.0]
[1743688841271,0.063,114.69,114.66,0.28432314]
[1743688841272,0.0001,114.69,114.68,67.71940958]
[1743688841447,0.03,114.79,114.76,26.0]
[1743688841642,0.53,114.79,114.74,0.42648471]
[1743688841954,0.5,114.78,114.74,26.0]
[1743688842143,0.5,114.73,114.72,1.6036]
[1743688842654,0.5,114.69,114.66,6.6549]
[1743688842850,0.5,114.67,114.64,1.5507]
[1743688843055,0.5,114.69,114.65,48.64327601]
[1743688843253,0.5,114.69,114.66,48.64327601]
[1743688843453,0.5,114.71,114.68,67.29292487]
[1743688843647,0.5,114.7,114.67,26.0]
[1743688843843,0.5,114.69,114.67,74.64327601]
[1743688844044,0.5,114.71,114.68,48.64327601]
[1743688844267,0.5,114.71,114.68,67.29292487]
[1743688844484,0.5,114.7,114.67,26.0]
[1743688844662,0.5,114.73,114.68,48.64327601]
[1743688844982,0.5,114.7,114.67,48.64327601]
[1743688845268,0.5,114.67,114.64,50.19397601]
[1743688845466,0.5,114.67,114.64,58.91657601]
[1743688845687,0.5,114.65,114.62,39.14641824]
[1743688845988,0.5,114.66,114.63,48.64327601]
[1743688846147,8.7181,114.71,114.65,48.64327601]
[1743688846148,0.5,114.68,114.65,48.64327601]
[1743688846353,0.5,114.66,114.64,48.64327601]
[1743688846550,0.5,114.65,114.62,96.51389425]
[1743688846752,0.5,114.65,114.63,48.64327601]
[1743688846948,0.5,114.65,114.64,67.29292487]
[1743688847291,0.5,114.67,114.63,0.14216157]
[1743688847592,69.9615,114.8,114.63,0.14216157]
[1743688847593,0.5,114.65,114.63,48.64327601]
[1743688847749,8.7184,114.7,114.62,39.14641824]
[1743688847750,0.5,114.64,114.62,39.14641824]
[1743688847946,0.5,114.67,114.64,18.64964886]
[1743688848270,0.5,114.68,114.66,48.64327601]
[1743688848570,0.5,114.69,114.66,48.64327601]
[1743688848773,48.64327601,114.73,114.65,48.64327601]
[1743688848774,0.5,114.67,114.65,48.64327601]
[1743688848954,0.5,114.67,114.64,57.36597601]
[1743688849148,0.5,114.7,114.66,48.64327601]
[1743688849355,0.5,114.67,114.64,8.7227]
[1743688849548,0.5,114.67,114.63,18.64964886]
[1743688849549,0.5,114.67,114.63,57.36667601]
[1743688849759,0.5,114.66,114.63,8.7234]
[1743688849968,0.5,114.66,114.64,48.64327601]
[1743688850170,0.5,114.66,114.63,27.37304886]
[1743688850374,0.5,114.66,114.63,76.01632487]
[1743688850575,0.5,114.67,114.63,76.01632487]
[1743688850750,0.5,114.66,114.63,76.01632487]
[1743688850950,0.563,114.69,114.65,48.64327601]
[1743688851153,0.563,114.69,114.63,49.18224886]
[1743688851154,0.5,114.66,114.64,48.64327601]
[1743688851363,0.5,114.65,114.63,8.7234]
[1743688851563,0.563,114.69,114.63,27.37304886]
[1743688851783,0.5,114.66,114.65,48.64327601]
[1743688851988,0.5,114.66,114.63,57.36667601]
[1743688852164,0.5,114.65,114.63,48.64327601]
[1743688852505,0.5,114.65,114.62,39.17641824]
[1743688852805,49.14327601,114.63,114.62,39.17641824]
[1743688853082,26.92648471,114.63,114.62,0.03]
[1743688853271,75.56976072,114.63,114.62,0.03]
[1743688853861,84.29346072,114.63,114.62,0.03]
[1743688854178,0.5,114.63,114.62,0.03]
[1743688854964,49.56976072,114.63,114.62,0.03]
[1743688855170,76.94310958,114.63,114.62,0.03]
[1743688855662,90.24310958,114.63,114.62,0.03]
[1743688856273,90.74310958,114.63,114.62,0.03]
[1743688856471,90.24310958,114.63,114.62,0.03]
[1743688857372,41.59983357,114.63,114.62,0.03]
[1743688857569,90.24310958,114.63,114.62,0.0001]
[1743688857771,90.74310958,114.63,114.62,0.0001]
[1743688858366,90.24310958,114.63,114.62,0.0001]
[1743688860075,0.64216157,114.63,114.62,0.0001]
[1743688860283,49.56976072,114.63,114.62,0.0001]
[1743688860466,0.5,114.63,114.62,0.0001]
[1743688861405,76.94310958,114.63,114.62,0.0001]
[1743688861681,0.5,114.53,114.52,10.2728]
[1743688861883,0.5,114.55,114.52,58.91607601]
[1743688862073,0.5,114.56,114.53,48.64327601]
[1743688862275,0.5,114.55,114.52,10.2728]
[1743688862597,0.5,114.53,114.52,58.91607601]
[1743688862790,0.5,114.54,114.52,10.2728]
[1743688863085,0.5,114.53,114.52,10.2728]
[1743688863282,0.5,114.57,114.52,80.74627601]
[1743688863478,0.5,114.58,114.55,48.64327601]
[1743688863679,0.5,114.59,114.55,48.64327601]
[1743688863988,0.5,114.6,114.58,26.0]
[1743688864189,0.5,114.6,114.56,13.16]
[1743688864489,0.5,114.59,114.56,61.80327601]
[1743688864785,0.5,114.59,114.57,48.64327601]
[1743688864972,0.5,114.59,114.56,13.16]
[1743688865167,0.5,114.57,114.56,13.16]
[1743688865368,0.5,114.56,114.54,8.7303]
[1743688865680,0.5,114.55,114.53,8.7309]
[1743688865887,0.5,114.54,114.53,8.7309]
[1743688866267,0.5,114.56,114.52,10.2725]
[1743688866484,0.5,114.56,114.53,48.64327601]
[1743688866783,0.5,114.54,114.52,23.4128]
[1743688867188,48.64327601,114.57,114.52,1.5408]
[1743688867189,0.5,114.53,114.52,1.5408]
[1743688867388,0.5,114.53,114.5,0.03]
[1743688867763,0.5,114.53,114.51,48.64327601]
[1743688868170,0.5,114.53,114.5,8.7632]
[1743688868378,0.5,114.51,114.5,8.7632]
[1743688868982,0.5,114.52,114.5,57.40647601]
[1743688869267,0.5,114.52,114.5,8.7632]
[1743688869671,0.5,114.51,114.5,8.7632]
[1743688869971,49.56976072,114.51,114.5,0.03]
[1743688870295,68.21940958,114.51,114.5,0.03]
[1743688870496,0.5,114.47,114.46,30.0]
[1743688870681,19.433972,114.44,114.43,0.063]
[1743688870883,68.07724801,114.44,114.43,0.063]
[1743688871079,76.81544801,114.44,114.43,0.063]
[1743688871386,76.95760958,114.44,114.43,0.063]
[1743688872096,68.21940958,114.44,114.43,0.063]
[1743688872286,76.95760958,114.44,114.43,0.063]
[1743688872498,77.45760958,114.44,114.43,0.063]
[1743688872697,68.21940958,114.44,114.43,0.063]
[1743688873587,76.95760958,114.44,114.43,0.063]
[1743688873911,68.21940958,114.44,114.43,0.063]
[1743688874794,68.07724801,114.44,114.43,0.063]
[1743688875120,76.95760958,114.44,114.43,0.063]
[1743688875321,77.45760958,114.44,114.43,0.063]
[1743688876300,68.21940958,114.44,114.43,0.063]
[1743688876708,49.28543758,114.44,114.43,0.063]
[1743688876906,49.14327601,114.44,114.43,0.063]
[1743688877300,0.5,114.44,114.43,0.063]
[1743688877708,49.14327601,114.44,114.43,0.063]
[1743688877911,0.5,114.44,114.43,0.063]
[1743688878697,49.14327601,114.44,114.43,0.063]
[1743688878994,0.5,114.44,114.43,0.063]
[1743688879616,49.56976072,114.44,114.43,0.063]
[1743688880016,49.14327601,114.44,114.43,0.063]
[1743688880605,0.5,114.44,114.43,0.063]
[1743688881627,75.14327601,114.44,114.43,0.063]
[1743688881995,0.5,114.44,114.43,0.063]
[1743688883615,49.14327601,114.44,114.43,0.063]
[1743688884205,0.5,114.44,114.43,0.063]
[1743688884925,0.5,114.45,114.43,48.70627601]
[1743688885233,0.5,114.46,114.43,18.71264886]
[1743688885405,0.5,114.44,114.43,0.063]
[1743688885604,0.5,114.44,114.43,78.70627601]
[1743688886121,0.5,114.44,114.43,30.063]
[1743688886627,0.5,114.44,114.43,0.063]
[1743688888339,0.5,114.45,114.43,48.70627601]
[1743688888523,0.5,114.45,114.43,0.063]
[1743688888830,0.5,114.45,114.43,48.70627601]
[1743688889036,0.5,114.44,114.43,48.70627601]
[1743688889233,0.5,114.44,114.43,0.063]
[1743688889535,49.14327601,114.44,114.43,0.063]
[1743688889729,1.42648471,114.43,114.42,30.0]
[1743688889912,1.42648471,114.43,114.42,29.937]
[1743688889913,68.71940958,114.43,114.42,29.937]
[1743688890432,27.14216157,114.4,114.39,0.063]
[1743688890645,20.07613357,114.39,114.38,0.063]
[1743688890812,117.36268559,114.39,114.38,0.063]
[1743688891017,68.21940958,114.39,114.38,0.063]
[1743688891217,68.71940958,114.39,114.38,0.063]
[1743688891624,126.10468559,114.39,114.38,0.0001]
[1743688891819,45.57613357,114.35,114.34,0.03]
[1743688892131,94.71940958,114.35,114.34,0.03]
[1743688892335,26.5,114.32,114.31,0.03]
[1743688892519,26.92648471,114.32,114.31,0.03]
[1743688892837,75.56976072,114.32,114.31,0.03]
[1743688893533,75.56976072,114.32,114.31,30.03]
[1743688893832,75.14327601,114.32,114.31,30.03]
[1743688894042,93.79292487,114.32,114.31,30.03]
[1743688894216,75.56976072,114.32,114.31,30.03]
[1743688894611,94.21940958,114.32,114.31,30.03]
[1743688894809,0.5,114.28,114.27,0.063]
[1743688895014,68.21940958,114.28,114.27,0.063]
[1743688895208,0.5,114.28,114.27,0.063]
[1743688895632,75.56976072,114.28,114.27,0.063]
[1743688895933,94.21940958,114.28,114.27,0.063]
[1743688896124,75.14327601,114.28,114.27,0.063]
[1743688896325,26.5,114.28,114.27,0.063]
[1743688896528,75.14327601,114.28,114.27,0.063]
[1743688896840,75.14327601,114.28,114.27,30.063]
[1743688897041,0.5,114.28,114.27,30.063]
[1743688897231,49.14327601,114.28,114.27,30.063]
[1743688897429,0.5,114.28,114.27,30.063]
[1743688898153,0.5,114.28,114.27,38.8142]
[1743688898723,0.5,114.28,114.27,30.063]
[1743688899331,49.14327601,114.28,114.27,30.063]
[1743688899840,0.5,114.28,114.27,30.063]
[1743688900066,49.14327601,114.28,114.27,30.063]
[1743688900347,49.56976072,114.28,114.27,30.063]
[1743688900645,75.14327601,114.28,114.27,30.063]
[1743688901018,0.5,114.28,114.27,30.063]
[1743688901917,0.5,114.28,114.27,38.8142]
[1743688903538,0.5,114.28,114.27,30.063]
[1743688903847,0.5,114.28,114.27,38.8142]
[1743688904626,0.5,114.28,114.27,30.063]
[1743688905243,49.14327601,114.28,114.27,30.063]
[1743688905442,26.5,114.28,114.27,30.063]
[1743688905647,75.14327601,114.28,114.27,30.063]
[1743688905842,26.5,114.28,114.27,30.063]
[1743688906039,0.5,114.28,114.27,30.063]
[1743688906925,0.5,114.28,114.27,87.45747601]
[1743688907739,0.5,114.29,114.27,87.45747601]
[1743688907935,0.5,114.29,114.28,48.64327601]
[1743688908141,0.5,114.29,114.28,78.64327601]
[1743688908330,0.5,114.29,114.28,30.0]
[1743688909859,0.5,114.29,114.28,38.7504]
[1743688910451,0.5,114.29,114.28,30.0]
[1743688910960,49.14327601,114.29,114.28,30.0]
[1743688911124,49.56976072,114.29,114.28,30.0]
[1743688911459,26.92648471,114.29,114.28,30.0]
[1743688911662,26.92648471,114.29,114.27,0.063]
[1743688911956,0.5,114.28,114.27,0.063]
[1743688912544,0.5,114.28,114.27,30.063]
[1743688912748,48.64327601,114.31,114.27,30.063]
[1743688912749,0.5,114.31,114.27,87.45747601]
[1743688912948,0.5,114.29,114.27,60.6922]
[1743688913149,0.5,114.29,114.28,67.29292487]
[1743688913346,0.5,114.29,114.28,48.64327601]
[1743688913552,0.5,114.29,114.28,78.64327601]
[1743688913858,0.5,114.31,114.29,18.64964886]
[1743688914041,0.5,114.31,114.3,57.39217601]
[1743688914551,0.5,114.31,114.3,38.7489]
[1743688914752,0.5,114.31,114.3,30.0]
[1743688915142,0.5,114.31,114.3,78.64327601]
[1743688915364,0.5,114.31,114.3,30.0]
[1743688915560,0.5,114.32,114.3,78.64327601]
[1743688915748,0.5,114.33,114.31,48.64327601]
[1743688916060,0.5,114.33,114.32,57.39057601]
[1743688916262,0.5,114.37,114.33,18.64964886]
[1743688916446,0.5,114.37,114.36,48.64327601]
[1743688916964,0.5,114.37,114.36,30.0]
[1743688917162,0.5,114.37,114.36,78.64327601]
[1743688917747,0.063,114.43,114.36,78.64327601]
[1743688917748,0.5,114.38,114.36,78.64327601]
[1743688917955,0.5,114.38,114.37,57.38677601]
[1743688918281,0.5,114.41,114.38,18.64964886]
[1743688918566,0.563,114.43,114.41,18.64964886]
[1743688918743,0.063,114.43,114.42,67.29292487]
[1743688918947,0.5,114.42,114.4,1.6556]
[1743688919152,0.5,114.42,114.41,48.64327601]
[1743688919353,0.563,114.43,114.41,48.64327601]
[1743688919658,0.5,114.42,114.41,48.64327601]
[1743688919853,0.5,114.41,114.4,50.29887601]
[1743688920154,0.5,114.41,114.4,30.0]
[1743688920642,0.5,114.41,114.4,38.7412]
[1743688920843,0.5,114.41,114.4,87.38447601]
[1743688921365,0.063,114.43,114.4,106.03412487]
[1743688921571,0.563,114.43,114.42,48.64327601]
[1743688921949,0.5,114.41,114.4,8.7412]
[1743688922153,0.5,114.41,114.38,21.8564]
[1743688922154,0.5,114.41,114.38,8.7427]
[1743688922346,0.5,114.39,114.38,57.38597601]
[1743688922760,0.5,114.4,114.38,8.7427]
[1743688922959,48.70627601,114.43,114.37,391.48847601]
[1743688922960,0.5,114.38,114.37,391.48847601]
[1743688923166,0.5,114.38,114.37,431.99692487]
[1743688923364,0.5,114.38,114.37,391.48847601]
[1743688923674,0.563,114.42,114.38,18.64964886]
[1743688923856,0.5,114.39,114.38,18.64964886]
[1743688924056,0.5,114.39,114.38,67.29292487]
[1743688924270,0.5,114.39,114.38,8.7427]
[1743688924454,0.063,114.42,114.38,57.38597601]
[1743688924455,0.5,114.41,114.38,57.38597601]
[1743688924652,0.063,114.42,114.4,48.64327601]
[1743688924853,0.563,114.42,114.41,48.64327601]
[1743688925267,0.563,114.42,114.4,48.64327601]
[1743688925468,0.5,114.4,114.38,27.39234886]
[1743688925671,0.5,114.4,114.39,48.64327601]
[1743688925858,0.5,114.4,114.38,57.38597601]
[1743688926064,0.563,114.42,114.39,48.64327601]
[1743688926292,0.5,114.4,114.38,30.5996]
[1743688926573,0.5,114.4,114.39,48.64327601]
[1743688926786,0.5,114.41,114.39,48.64327601]
[1743688926977,0.5,114.41,114.4,48.64327601]
[1743688927879,0.063,114.42,114.4,48.64327601]
[1743688928062,0.0001,114.42,114.41,67.29292487]
[1743688928264,0.0001,114.46,114.42,27.81583357]
[1743688928578,0.0001,114.46,114.45,150.25438559]
[1743688929355,0.0001,114.46,114.45,101.18462487]
[1743688929760,0.0001,114.46,114.45,150.25438559]
[1743688929963,0.0001,114.46,114.45,101.61110958]
[1743688930482,0.0001,114.46,114.45,110.34850958]
[1743688930787,0.063,114.5,114.49,44.933972]
[1743688931081,0.063,114.5,114.49,93.29292487]
[1743688931380,0.063,114.5,114.49,93.71940958]
[1743688932175,0.063,114.5,114.49,93.57724801]
[1743688932376,0.063,114.5,114.49,102.31154801]
[1743688932578,0.063,114.5,114.49,109.43577606]
[1743688932765,0.5,114.54,114.5,19.07613357]
[1743688932977,0.5,114.54,114.53,48.64327601]
[1743688933384,0.5,114.54,114.5,18.933972]
[1743688933694,0.5,114.52,114.51,67.29292487]
[1743688934095,0.5,114.52,114.51,48.64327601]
[1743688934395,0.5,114.52,114.51,57.37607601]
[1743688934593,0.5,114.54,114.51,57.37607601]
[1743688934777,0.5,114.54,114.52,48.64327601]
[1743688935085,0.5,114.56,114.54,0.28432314]
[1743688935292,0.5,114.6,114.56,18.64964886]
[1743688935463,0.5,114.6,114.58,48.64327601]
[1743688935665,0.5,114.61,114.59,48.64327601]
[1743688935966,0.5,114.61,114.6,48.64327601]
[1743688936169,0.063,114.62,114.6,48.64327601]
[1743688936170,0.563,114.62,114.6,48.64327601]
[1743688936370,0.063,114.62,114.61,76.01812487]
[1743688936564,0.563,114.62,114.61,76.01812487]
[1743688936761,0.563,114.62,114.61,57.36847601]
[1743688936967,0.063,114.62,114.61,76.30244801]
[1743688937173,0.063,114.62,114.61,76.44460958]
[1743688938580,0.063,114.64,114.61,76.44460958]
[1743688938581,0.063,114.64,114.61,82.69260958]
[1743688938780,0.0001,114.64,114.63,67.71940958]
[1743688940357,0.0001,114.64,114.63,97.57724801]
[1743688940563,0.0001,114.64,114.63,106.30094801]
[1743688941182,0.0001,114.64,114.63,30.0]
[1743688941368,0.0001,114.64,114.6,60.72327601]
[1743688941369,0.5,114.63,114.6,60.72327601]
[1743688941573,0.5001,114.64,114.61,78.64327601]
[1743688941778,0.5,114.62,114.61,97.29292487]
[1743688941976,0.5001,114.64,114.61,97.29292487]
[1743688942178,0.5,114.62,114.61,30.0]
[1743688942486,0.5,114.62,114.61,38.7252]
[1743688942662,0.5,114.62,114.61,30.0]
[1743688943167,0.5,114.61,114.6,12.08]
[1743688943368,0.5,114.59,114.58,18.64964886]
[1743688943576,0.5,114.59,114.58,106.02042487]
[1743688943771,0.5,114.59,114.58,78.64327601]
[1743688943974,0.5,114.61,114.58,87.37077601]
[1743688944174,0.5,114.59,114.58,106.02042487]
[1743688944379,0.5,114.59,114.58,97.29292487]
[1743688944679,0.5,114.59,114.58,106.02042487]
[1743688944988,48.64327601,114.63,114.58,87.37077601]
[1743688944989,0.5,114.6,114.58,87.37077601]
[1743688945205,0.5,114.59,114.58,87.37077601]
[1743688945364,0.5,114.61,114.58,87.37077601]
[1743688945768,0.5,114.6,114.59,48.64327601]
[1743688946271,0.5,114.59,114.58,48.64327601]
[1743688946677,0.5,114.59,114.58,57.37057601]
[1743688946973,0.5,114.59,114.58,76.02022487]
[1743688947167,0.5,114.62,114.58,76.02022487]
[1743688947368,0.5,114.59,114.57,8.7282]
[1743688947567,0.5,114.59,114.57,57.37147601]
[1743688947769,0.5,114.58,114.56,326.96]
[1743688947990,0.5,114.58,114.56,384.33217601]
[1743688948286,0.5,114.58,114.57,48.64327601]
[1743688948491,0.5,114.58,114.56,375.60327601]
[1743688948673,0.5,114.6,114.56,384.33207601]
[1743688948871,0.5,114.58,114.54,18.64964886]
[1743688949082,0.5,114.56,114.55,48.64327601]
[1743688949607,0.5,114.56,114.54,76.02332487]
[1743688949776,0.5,114.52,114.5,0.03]
[1743688949973,0.5,114.51,114.5,0.03]
[1743688950523,49.28543758,114.51,114.5,0.03]
[1743688950677,49.56976072,114.51,114.5,0.03]
[1743688951090,49.14327601,114.51,114.5,0.03]
[1743688951284,76.95220958,114.51,114.5,0.03]
[1743688952200,76.95220958,114.51,114.5,0.03]
[1743688952593,0.5,114.43,114.42,338.56]
[1743688952787,0.5,114.44,114.42,368.56]
[1743688952996,0.5,114.43,114.42,425.94297601]
[1743688953500,0.5,114.43,114.42,413.98297601]
[1743688953680,0.5,114.43,114.41,47.95890981]
[1743688953889,0.5,114.42,114.41,47.95890981]
[1743688954102,0.5,114.43,114.41,77.95890981]
[1743688954306,0.5,114.42,114.41,30.0]
[1743688954883,49.14327601,114.42,114.41,30.0]
[1743688955099,0.5,114.38,114.37,8.7432]
[1743688955287,0.5,114.38,114.37,38.7432]
[1743688956885,0.5,114.38,114.37,30.0]
[1743688957087,0.5,114.38,114.37,38.7435]
[1743688957587,0.5,114.4,114.37,57.38677601]
[1743688957799,0.5,114.42,114.39,48.64327601]
[1743688958001,0.5,114.41,114.4,48.64327601]